fUST/lending_fUST_20251020
["ID","MTS","AMOUNT","RATE_DAILY","PERIOD"]
[391873976,1760941832488,-500.0,0.00024926,2]
[391873977,1760941832498,-378.14044871,0.00024926,2]
[391873978,1760941832509,-500.0,0.00024926,2]
[391873979,1760941832518,-500.0,0.00024926,2]
[391873980,1760941832528,-500.0,0.00024926,2]
[391873981,1760941832538,-500.0,0.00024926,2]
[391873982,1760941832548,-270.06065467,0.00024926,2]
[391873983,1760941832557,-500.0,0.00024926,2]
[391873984,1760941832567,-500.0,0.00024926,2]
[391873985,1760941832577,-500.0,0.00024926,2]
[391873986,1760941832597,-500.0,0.00024926,2]
[391873987,1760941832609,-500.0,0.00024926,2]
[391873988,1760941832622,-500.0,0.00024926,2]
[391873989,1760941832632,-287.28523421,0.00024926,2]
[391873990,1760941832641,-500.0,0.00024926,2]
[391873991,1760941832651,-500.0,0.00024926,2]
[391873992,1760941832661,-500.0,0.00024926,2]
[391873993,1760941832671,-500.0,0.00024926,2]
[391873994,1760941832680,-500.0,0.00024926,2]
[391873995,1760941832691,-500.0,0.00024926,2]
[391873996,1760941832701,-500.0,0.00024926,2]
[391873997,1760941832710,-500.0,0.00024926,2]
[391873998,1760941832720,-500.0,0.00024926,2]
[391873999,1760941832729,-500.0,0.00024926,2]
[391874000,1760941832739,-500.0,0.00024926,2]
[391874001,1760941832750,-500.0,0.00024926,2]
[391874002,1760941832760,-500.0,0.00024926,2]
[391874003,1760941832769,-7896.29576493,0.00024927,2]
[391874004,1760941835855,1218.15870505,0.00024141,2]
[391874005,1760941835880,1836.12572852,0.00024141,2]
[391874019,1760941838169,-2273.59998516,0.00024927,2]
[391874021,1760941838259,-9518.19901842,0.00024927,2]
[391874022,1760941838272,-153401.54491399,0.00024927,2]
[391874023,1760941838287,-1189.62,0.00024927,2]
[391874034,1760941843554,-26.02500227,0.00024927,2]
[391874048,1760941846484,-3335.7,0.00024678,2]
[391874052,1760942000168,-5000.0,0.00024431,2]
[391874053,1760942000211,-1664.3,0.00024678,2]
[391874054,1760942000257,-31376.4713798,0.00024817,2]
[391874055,1760942000302,-370000.0,0.00024827,2]
[391874056,1760942000349,-8068.0221051,0.000249,2]
[391874057,1760942000394,-300.0,0.00024926,2]
[391874058,1760942000436,-215.4365532,0.00024926,2]
[391874059,1760942000475,-500.0,0.00024926,2]
[391874060,1760942000513,-1344.67035085,0.0002499,2]
[391874061,1760942000553,-5229.41189663,0.0002499,2]
[391874062,1760942000594,-12980.7,0.00025,7]
[391874063,1760942000636,-156.959617,0.00025562,2]
[391874064,1760942000676,-2445.7549951,0.00025609,2]
[391874065,1760942000716,-17898.5211895,0.00025609,2]
[391874066,1760942000758,-1344.67035085,0.0002599,2]
[391874067,1760942000800,-5229.41189663,0.0002599,2]
[391874068,1760942000839,-54263.249241,0.00026,30]
[391874069,1760942000879,-156.959617,0.00026125,2]
[391874070,1760942000916,-156.959617,0.00026688,2]
[391874071,1760942000953,-501.13589229,0.00026875,2]
[391874072,1760942000992,-574.70726404,0.00026875,2]
[391874073,1760942001033,-501.0076811,0.00026875,2]
[391874074,1760942001073,-500.0,0.00026875,2]
[391874075,1760942001116,-500.0,0.00026875,2]
[391874076,1760942001161,-224.32,0.00026947,2]
[391874077,1760942001207,-420.0,0.00027006,2]
[391874078,1760942001246,-156.959617,0.0002725,2]
[391874079,1760942001285,-154.761601,0.0002729,2]
[391874081,1760942019567,663.559795,0.00013699,2]
[391874082,1760942019795,663.559795,0.00020187,2]
[391874083,1760942041399,-48403.87779758,0.00033851,32]
[391874084,1760942041433,-100000.0,0.00033851,30]
[391874085,1760942041467,-100000.0,0.00033851,30]
[391874086,1760942041501,-100000.0,0.00033851,30]
[391874087,1760942041536,-100000.0,0.00033851,30]
[391874088,1760942041571,-100000.0,0.00033851,30]
[391874089,1760942041606,-90028.31371512,0.00033851,45]
[391874090,1760942041649,-1014.45004306,0.00033851,30]
[391874091,1760942041688,-151.0,0.00033851,30]
[391874092,1760942041728,-17300.0,0.00033851,30]
[391874093,1760942041765,-151.0,0.00033851,30]
[391874094,1760942041800,-151.0,0.00033851,30]
[391874095,1760942041836,-151.0,0.00033851,30]
[391874096,1760942041874,-250.0,0.00033851,30]
[391874097,1760942041910,-17940.1,0.00033851,30]
[391874098,1760942041946,-156.587,0.00033851,30]
[391874099,1760942041983,-151.0,0.00033851,30]
[391874100,1760942042022,-250.0,0.00033851,30]
[391874101,1760942042062,-162.380719,0.00033851,30]
[391874102,1760942042103,-250.0,0.00033851,30]
[391874103,1760942042143,-168.3888056,0.00033851,30]
[391874104,1760942042183,-250.0,0.00033851,30]
[391874105,1760942042223,-174.61919141,0.00033851,30]
[391874106,1760942042264,-250.0,0.00033851,30]
[391874107,1760942042305,-181.08010149,0.00033851,30]
[391874108,1760942042346,-250.0,0.00033851,30]
[391874109,1760942042388,-187.78006525,0.00033851,30]
[391874110,1760942042560,-250.0,0.00033851,30]
[391874111,1760942042606,-194.72792766,0.00033851,30]
[391874112,1760942042655,-250.0,0.00033851,30]
[391874113,1760942042707,-194.72792766,0.00033851,30]
[391874114,1760942042752,-250.0,0.00033851,30]
[391874115,1760942042797,-250.0,0.00033851,30]
[391874116,1760942042844,-250.0,0.00033851,30]
[391874117,1760942042889,-250.0,0.00033851,30]
[391874118,1760942042933,-250.0,0.00033851,30]
[391874119,1760942042978,-250.0,0.00033851,30]
[391874120,1760942043021,-500.0,0.00033851,30]
[391874121,1760942043068,-250.0,0.00033851,30]
[391874122,1760942043118,-250.0,0.00033851,30]
[391874123,1760942043168,-500.0,0.00033851,30]
[391874124,1760942043215,-250.0,0.00033851,30]
[391874125,1760942043261,-250.0,0.00033851,30]
[391874126,1760942043308,-500.0,0.00033851,30]
[391874127,1760942043356,-250.0,0.00033851,30]
[391874128,1760942043399,-500.0,0.00033851,30]
[391874129,1760942043440,-250.0,0.00033851,30]
[391874130,1760942043479,-500.0,0.00033851,30]
[391874131,1760942043518,-250.0,0.00033851,30]
[391874132,1760942043562,-500.0,0.00033851,30]
[391874133,1760942043600,-250.0,0.00033851,30]
[391874134,1760942043642,-250.0,0.00033851,30]
[391874135,1760942043680,-250.0,0.00033851,30]
[391874136,1760942043719,-250.0,0.00033851,30]
[391874137,1760942043755,-250.0,0.00033851,30]
[391874138,1760942043793,-250.0,0.00033851,30]
[391874139,1760942043838,-414.0,0.00033851,30]
[391874140,1760942043880,-429.318,0.00033851,30]
[391874141,1760942043919,-445.202766,0.00033851,30]
[391874142,1760942043961,-461.67526834,0.00033851,30]
[391874143,1760942044000,-478.75725327,0.00033851,30]
[391874144,1760942044041,-496.47127164,0.00033851,30]
[391874145,1760942044087,-514.84070869,0.00033851,30]
[391874146,1760942044131,-533.88981491,0.00033851,30]
[391874147,1760942044172,-533.88981491,0.00033851,30]
[391874148,1760942088897,-712.556475,0.00030137,120]
[391874149,1760942088943,-465.79207467,0.00031,120]
[391874150,1760942088983,-341.32649897,0.00031,120]
[391874151,1760942089022,-190.19051072,0.00031,120]
[391874152,1760942089059,-217.0188451,0.00031,30]
[391874153,1760942089094,-465.79207467,0.000319,120]
[391874154,1760942089130,-341.32649897,0.000319,120]
[391874155,1760942089171,-190.19051072,0.000319,120]
[391874156,1760942089211,-1787.93810506,0.00032,30]
[391874157,1760942089254,-3090.6,0.00032876,120]
[391874158,1760942089295,-465.79207467,0.000329,120]
[391874159,1760942089331,-341.32649897,0.000329,120]
[391874160,1760942089367,-190.19051072,0.000329,120]
[391874161,1760942089403,-5985.39410159,0.00033,30]
[391874162,1760942089438,-3090.6,0.00033561,120]
[391874163,1760942089473,-634.0,0.00033851,60]
[391874164,1760942089506,-151.0,0.00033851,30]
[391874165,1760942089538,-151.0,0.00033851,30]
[391874166,1760942089573,-151.0,0.00033851,30]
[391874167,1760942089606,-151.0,0.00033851,30]
[391874168,1760942089639,-151.0,0.00033851,30]
[391874169,1760942089674,-285.314167,0.00033851,30]
[391874170,1760942089712,-151.0,0.00033851,30]
[391874171,1760942089748,-151.0,0.00033851,30]
[391874172,1760942089786,-151.0,0.00033851,30]
[391874173,1760942089825,-151.0,0.00033851,30]
[391874174,1760942089865,-151.0,0.00033851,30]
[391874175,1760942089908,-2412.22,0.00033883,60]
[391874176,1760942089949,-465.79207467,0.000339,120]
[391874177,1760942089988,-341.32649897,0.000339,120]
[391874178,1760942090030,-190.19051072,0.000339,120]
[391874179,1760942090071,-4579.33515273,0.00034,30]
[391874180,1760942090112,-500.0,0.00034043,60]
[391874181,1760942090152,-3090.6,0.00034246,120]
[391874182,1760942090191,-155.0,0.00034521,30]
[391874183,1760942090231,-151.0,0.00034887,30]
[391874184,1760942090268,-151.0,0.00034887,30]
[391874185,1760942090304,-151.0,0.00034887,30]
[391874186,1760942090340,-155.877407,0.00034887,30]
[391874187,1760942090376,-151.0,0.00034887,30]
[391874188,1760942090412,-465.79207467,0.000349,120]
[391874189,1760942090447,-341.32649897,0.000349,120]
[391874190,1760942090482,-190.19051072,0.000349,120]
[391874191,1760942090519,-3090.6,0.00034931,120]
[391874192,1760942090555,-300.0,0.00035,120]
[391874193,1760942090590,-712.556475,0.0003516,120]
[391874194,1760942090627,-213.3186526,0.00035375,30]
[391874195,1760942090663,-200.26514217,0.00035534,30]
[391874196,1760942090700,-3090.6,0.00035616,120]
[391874197,1760942090736,-160.0,0.00036,60]
[391874198,1760942090771,-163.26138411,0.00036,60]
[391874199,1760942090807,-200.26514217,0.00036,30]
[391874200,1760942090842,-3090.6,0.00036301,120]
[391874201,1760942090880,-163.830946,0.00036789,60]
[391874202,1760942090915,-3090.6,0.00036986,120]
[391874203,1760942090955,-830.10084282,0.00037091,30]
[391874204,1760942090991,-2500.0,0.000375,60]
[391874205,1760942091029,-163.830946,0.00037592,60]
[391874206,1760942091064,-156.959617,0.00037592,60]
[391874207,1760942091099,-3090.6,0.00037671,120]
[391874208,1760942091136,-480.80644,0.00038346,120]
[391874209,1760942091170,-480.80644,0.00038346,120]
[391874210,1760942091206,-480.80644,0.00038346,120]
[391874211,1760942091241,-480.80644,0.00038346,120]
[391874212,1760942091274,-5000.0,0.00038347,30]
[391874213,1760942091308,-5000.0,0.00038347,30]
[391874214,1760942091342,-4291.75,0.00038347,30]
[391874215,1760942091376,-500.52266397,0.00038356,30]
[391874216,1760942091409,-500.0,0.00038356,30]
[391874217,1760942091443,-519.71933321,0.00038356,30]
[391874218,1760942091476,-151.0,0.00038356,120]
[391874219,1760942091509,-151.0,0.00038356,120]
[391874220,1760942091543,-151.0,0.00038356,120]
[391874221,1760942091579,-151.0,0.00038356,120]
[391874222,1760942091727,-151.0,0.00038356,120]
[391874223,1760942091769,-151.0,0.00038356,120]
[391874224,1760942091809,-151.0,0.00038356,120]
[391874225,1760942091847,-151.0,0.00038356,120]
[391874226,1760942091887,-500.0,0.00038356,30]
[391874227,1760942091925,-500.0,0.00038356,30]
[391874228,1760942091966,-500.0,0.00038356,30]
[391874229,1760942092003,-500.0,0.00038356,30]
[391874230,1760942092040,-500.0,0.00038356,30]
[391874231,1760942092075,-500.0,0.00038356,30]
[391874232,1760942092108,-500.0,0.00038356,30]
[391874233,1760942092144,-500.0,0.00038356,30]
[391874234,1760942092181,-500.0,0.00038356,30]
[391874235,1760942092218,-500.0,0.00038356,30]
[391874236,1760942092251,-500.0,0.00038356,30]
[391874237,1760942092284,-500.0,0.00038356,30]
[391874238,1760942092318,-500.0,0.00038356,30]
[391874239,1760942092355,-500.0,0.00038356,30]
[391874240,1760942092394,-228.41735803,0.00038356,30]
[391874241,1760942092430,-500.0,0.00038356,30]
[391874242,1760942092466,-500.0,0.00038356,30]
[391874243,1760942092502,-500.0,0.00038356,30]
[391874244,1760942092538,-500.0,0.00038356,30]
[391874245,1760942092574,-534.56937762,0.00038356,30]
[391874246,1760942092609,-167.84534344,0.00038356,30]
[391874247,1760942092643,-500.0,0.00038356,30]
[391874248,1760942092677,-500.0,0.00038356,30]
[391874249,1760942092715,-500.0,0.00038356,30]
[391874250,1760942092750,-500.66109766,0.00038356,30]
[391874251,1760942092787,-505.31189445,0.00038356,30]
[391874252,1760942092822,-506.21517225,0.00038356,30]
[391874253,1760942092857,-500.0,0.00038356,30]
[391874254,1760942092892,-500.0,0.00038356,30]
[391874255,1760942092929,-392.67,0.00038356,30]
[391874256,1760942092967,-500.0,0.00038356,30]
[391874257,1760942093004,-500.0,0.00038356,30]
[391874258,1760942093044,-500.0,0.00038356,30]
[391874259,1760942093081,-500.0,0.00038356,30]
[391874260,1760942093121,-500.0,0.00038356,30]
[391874261,1760942093161,-500.0,0.00038356,30]
[391874262,1760942093203,-500.0,0.00038356,30]
[391874263,1760942093246,-307.3,0.00038356,30]
[391874264,1760942093288,-500.0,0.00038356,30]
[391874265,1760942093326,-500.45888089,0.00038356,30]
[391874266,1760942093364,-500.0,0.00038356,30]
[391874267,1760942093401,-500.0,0.00038356,30]
[391874268,1760942093436,-159.58,0.00038356,30]
[391874269,1760942093472,-500.0,0.00038356,30]
[391874270,1760942093506,-445.89,0.00038356,30]
[391874271,1760942093542,-480.80644,0.00038356,120]
[391874272,1760942093577,-500.29190962,0.00038356,30]
[391874273,1760942093614,-480.80644,0.00038356,120]
[391874274,1760942093651,-480.80644,0.00038356,120]
[391874275,1760942093693,-480.80644,0.00038356,120]
[391874276,1760942093730,-500.0,0.00038356,30]
[391874277,1760942093769,-500.0,0.00038356,30]
[391874278,1760942093806,-500.0,0.00038356,30]
[391874279,1760942093844,-620.45,0.00038356,30]
[391874280,1760942093881,-500.0,0.00038356,30]
[391874281,1760942093920,-500.78628107,0.00038356,30]
[391874282,1760942093961,-500.0,0.00038356,30]
[391874283,1760942093995,-500.0,0.00038356,30]
[391874284,1760942094030,-500.0,0.00038356,30]
[391874285,1760942094064,-184.44,0.00038356,30]
[391874286,1760942094099,-500.0,0.00038356,30]
[391874287,1760942094139,-500.0,0.00038356,30]
[391874288,1760942094184,-500.0,0.00038356,30]
[391874289,1760942094225,-500.0,0.00038356,30]
[391874290,1760942094261,-546.44,0.00038356,30]
[391874291,1760942094296,-504.71968066,0.00038356,30]
[391874292,1760942094331,-565.21596897,0.00038356,30]
[391874293,1760942094366,-500.0,0.00038356,30]
[391874294,1760942094401,-500.0,0.00038356,30]
[391874295,1760942094434,-504.41330343,0.00038356,30]
[391874296,1760942094467,-150.46465545,0.00038356,30]
[391874297,1760942094500,-502.99550813,0.00038356,30]
[391874298,1760942094533,-503.23064979,0.00038356,30]
[391874299,1760942094567,-506.24154847,0.00038356,30]
[391874300,1760942094600,-500.0,0.00038356,30]
[391874301,1760942094636,-209.43373602,0.00038356,30]
[391874302,1760942094668,-461.6076702,0.00038356,30]
[391874303,1760942094700,-501.91692816,0.00038356,30]
[391874304,1760942094732,-500.89590104,0.00038356,30]
[391874305,1760942094765,-500.0,0.00038356,30]
[391874306,1760942094799,-500.0,0.00038356,30]
[391874307,1760942094835,-508.7312082,0.00038356,30]
[391874308,1760942094869,-500.0,0.00038356,30]
[391874309,1760942094906,-253.81,0.00038356,30]
[391874310,1760942094944,-500.0,0.00038356,30]
[391874311,1760942094981,-500.7119741,0.00038356,30]
[391874312,1760942095019,-500.0,0.00038356,30]
[391874313,1760942095057,-500.0,0.00038356,30]
[391874314,1760942095096,-500.0,0.00038356,30]
[391874315,1760942095132,-409.43219201,0.00038356,30]
[391874316,1760942095168,-502.76294101,0.00038356,30]
[391874317,1760942095308,-513.16892331,0.00038356,30]
[391874318,1760942095344,-524.58988764,0.00038356,30]
[391874319,1760942095379,-442.6590279,0.00038356,30]
[391874320,1760942095413,-501.19639917,0.00038356,30]
[391874321,1760942095446,-571.76,0.00038356,30]
[391874322,1760942095479,-610.31594692,0.00038356,30]
[391874323,1760942095511,-500.0,0.00038356,30]
[391874324,1760942095543,-500.0,0.00038356,30]
[391874325,1760942095578,-397.4431371,0.00038356,30]
[391874326,1760942095611,-161.24141542,0.00038356,30]
[391874327,1760942095648,-162.02840177,0.00038356,30]
[391874328,1760942095689,-500.0,0.00038356,30]
[391874329,1760942095731,-164.12428821,0.00038356,30]
[391874330,1760942095772,-500.0,0.00038356,30]
[391874331,1760942095811,-500.0,0.00038356,30]
[391874332,1760942095849,-500.0,0.00038356,30]
[391874333,1760942095886,-500.0,0.00038356,30]
[391874334,1760942095926,-500.0,0.00038356,30]
[391874335,1760942095964,-500.0,0.00038356,30]
[391874336,1760942096001,-500.0,0.00038356,30]
[391874337,1760942096039,-500.0,0.00038356,30]
[391874338,1760942096080,-500.0,0.00038356,30]
[391874339,1760942096121,-503.66667434,0.00038356,30]
[391874340,1760942096164,-517.45588079,0.00038356,30]
[391874341,1760942096207,-500.0,0.00038356,30]
[391874342,1760942096252,-500.34363524,0.00038356,30]
[391874343,1760942096294,-631.57458927,0.00038356,30]
[391874344,1760942096339,-502.71683895,0.00038356,30]
[391874345,1760942096382,-405.06706632,0.00038356,30]
[391874346,1760942096436,-500.0,0.00038356,30]
[391874347,1760942096489,-500.0,0.00038356,30]
[391874348,1760942096548,-500.97928054,0.00038356,30]
[391874349,1760942096592,-255.47481698,0.00038356,30]
[391874350,1760942096633,-500.50995956,0.00038356,30]
[391874351,1760942096676,-500.0,0.00038356,30]
[391874352,1760942096716,-612.30854237,0.00038356,30]
[391874353,1760942096753,-508.94505436,0.00038356,30]
[391874354,1760942096787,-500.0,0.00038356,30]
[391874355,1760942096824,-501.33695407,0.00038356,30]
[391874356,1760942096861,-500.0,0.00038356,30]
[391874357,1760942096901,-501.72958478,0.00038356,30]
[391874358,1760942096943,-416.17525626,0.00038356,30]
[391874359,1760942096981,-503.94935319,0.00038356,30]
[391874360,1760942097025,-500.0,0.00038356,30]
[391874361,1760942097068,-501.41458571,0.00038356,30]
[391874362,1760942097115,-500.0,0.00038356,30]
[391874363,1760942097159,-594.8565053,0.00038356,30]
[391874364,1760942097204,-500.0,0.00038356,30]
[391874365,1760942097246,-500.0,0.00038356,30]
[391874366,1760942097287,-500.34205242,0.00038356,30]
[391874367,1760942097332,-500.0,0.00038356,30]
[391874368,1760942097374,-500.0,0.00038356,30]
[391874369,1760942097416,-500.0,0.00038356,30]
[391874370,1760942097457,-500.0,0.00038356,30]
[391874371,1760942097493,-284.40463045,0.00038356,30]
[391874372,1760942097529,-500.0,0.00038356,30]
[391874373,1760942097565,-500.0,0.00038356,30]
[391874374,1760942097604,-215.26,0.00038356,30]
[391874375,1760942097639,-500.0,0.00038356,30]
[391874376,1760942097675,-500.0,0.00038356,30]
[391874377,1760942097714,-500.0,0.00038356,30]
[391874378,1760942097749,-500.0,0.00038356,30]
[391874379,1760942097785,-218.99,0.00038356,30]
[391874380,1760942097821,-544.56520604,0.00038356,30]
[391874381,1760942097857,-501.13462124,0.00038356,30]
[391874382,1760942097892,-511.15376222,0.00038356,30]
[391874383,1760942097929,-500.52008247,0.00038356,30]
[391874384,1760942097964,-503.88167661,0.00038356,30]
[391874385,1760942098000,-500.0,0.00038356,30]
[391874386,1760942098038,-500.0,0.00038356,30]
[391874387,1760942098080,-500.0,0.00038356,30]
[391874388,1760942098396,-620.05487279,0.00038356,30]
[391874389,1760942098437,-500.0,0.00038356,30]
[391874390,1760942098476,-450.91774731,0.00038356,30]
[391874391,1760942098512,-488.52054881,0.00038356,30]
[391874392,1760942098548,-500.18472206,0.00038356,30]
[391874393,1760942098584,-500.0,0.00038356,30]
[391874394,1760942098618,-508.78241854,0.00038356,30]
[391874395,1760942098657,-500.0,0.00038356,30]
[391874396,1760942098696,-500.0,0.00038356,30]
[391874397,1760942098731,-531.26564136,0.00038356,30]
[391874398,1760942098767,-500.0,0.00038356,30]
[391874399,1760942098801,-494.98311761,0.00038356,30]
[391874400,1760942098837,-471.9569234,0.00038356,30]
[391874401,1760942098872,-500.0,0.00038356,30]
[391874402,1760942098909,-500.0,0.00038356,30]
[391874403,1760942098944,-500.0,0.00038356,30]
[391874404,1760942098982,-500.0,0.00038356,30]
[391874405,1760942099019,-500.0,0.00038356,30]
[391874406,1760942099064,-500.0,0.00038356,30]
[391874407,1760942099103,-500.0,0.00038356,30]
[391874408,1760942099143,-470.29797872,0.00038356,30]
[391874409,1760942099183,-500.0,0.00038356,30]
[391874410,1760942099222,-500.0,0.00038356,30]
[391874411,1760942099262,-500.0,0.00038356,30]
[391874412,1760942099405,-500.0,0.00038356,30]
[391874413,1760942099442,-500.0,0.00038356,30]
[391874414,1760942099476,-500.0,0.00038356,30]
[391874415,1760942099509,-500.0,0.00038356,30]
[391874416,1760942099542,-500.0,0.00038356,30]
[391874417,1760942099576,-500.0,0.00038356,30]
[391874418,1760942099610,-500.0,0.00038356,30]
[391874419,1760942099646,-371.08970622,0.00038356,30]
[391874420,1760942099682,-496.58025351,0.00038356,30]
[391874421,1760942099721,-292.66375474,0.00038356,30]
[391874422,1760942099757,-500.0,0.00038356,30]
[391874423,1760942099792,-500.0,0.00038356,30]
[391874424,1760942099830,-500.0,0.00038356,30]
[391874425,1760942099868,-500.0,0.00038356,30]
[391874426,1760942099908,-500.0,0.00038356,30]
[391874427,1760942099949,-500.0,0.00038356,30]
[391874428,1760942099991,-500.0,0.00038356,30]
[391874429,1760942100044,-500.0,0.00038356,30]
[391874430,1760942100095,-500.0,0.00038356,30]
[391874431,1760942100146,-500.0,0.00038356,30]
[391874432,1760942100195,-500.0,0.00038356,30]
[391874433,1760942100240,-500.0,0.00038356,30]
[391874434,1760942100290,-500.0,0.00038356,30]
[391874435,1760942100331,-500.0,0.00038356,30]
[391874436,1760942100373,-500.0,0.00038356,30]
[391874437,1760942100414,-500.0,0.00038356,30]
[391874438,1760942100458,-500.0,0.00038356,30]
[391874439,1760942100505,-500.0,0.00038356,30]
[391874440,1760942100546,-500.0,0.00038356,30]
[391874441,1760942100583,-500.0,0.00038356,30]
[391874442,1760942100616,-500.0,0.00038356,30]
[391874443,1760942100650,-500.0,0.00038356,30]
[391874444,1760942100687,-500.0,0.00038356,30]
[391874445,1760942100720,-500.0,0.00038356,30]
[391874446,1760942100752,-500.0,0.00038356,30]
[391874447,1760942100786,-500.0,0.00038356,30]
[391874448,1760942100820,-218.82746295,0.00038356,30]
[391874449,1760942100854,-500.0,0.00038356,30]
[391874450,1760942100888,-500.0,0.00038356,30]
[391874451,1760942100921,-399.22218434,0.00038356,30]
[391874452,1760942100953,-500.0,0.00038356,30]
[391874453,1760942100986,-500.0,0.00038356,30]
[391874454,1760942101024,-500.0,0.00038356,30]
[391874455,1760942101059,-500.0,0.00038356,30]
[391874456,1760942101095,-500.0,0.00038356,30]
[391874457,1760942101131,-500.0,0.00038356,30]
[391874458,1760942101166,-500.0,0.00038356,30]
[391874459,1760942101203,-500.0,0.00038356,30]
[391874460,1760942101238,-500.0,0.00038356,30]
[391874461,1760942101271,-500.0,0.00038356,30]
[391874462,1760942101304,-500.0,0.00038356,30]
[391874463,1760942101338,-500.0,0.00038356,30]
[391874464,1760942101371,-500.0,0.00038356,30]
[391874465,1760942101404,-500.0,0.00038356,30]
[391874466,1760942101437,-522.70948362,0.00038356,30]
[391874467,1760942101470,-500.0,0.00038356,30]
[391874468,1760942101507,-512.80094886,0.00038356,30]
[391874469,1760942101542,-500.0,0.00038356,30]
[391874470,1760942101577,-301.00363303,0.00038356,30]
[391874471,1760942101611,-500.0,0.00038356,30]
[391874472,1760942101643,-501.73254957,0.00038356,30]
[391874473,1760942101679,-482.72100371,0.00038356,30]
[391874474,1760942101715,-492.39482735,0.00038356,30]
[391874475,1760942101749,-182.09984995,0.00038356,30]
[391874476,1760942101782,-500.0,0.00038356,30]
[391874477,1760942101816,-500.0,0.00038356,30]
[391874478,1760942101853,-509.29529507,0.00038356,30]
[391874479,1760942101887,-504.40641753,0.00038356,30]
[391874480,1760942101929,-500.0,0.00038356,30]
[391874481,1760942101965,-506.49429743,0.00038356,30]
[391874482,1760942102005,-500.0,0.00038356,30]
[391874483,1760942102047,-500.0,0.00038356,30]
[391874484,1760942102088,-500.0,0.00038356,30]
[391874485,1760942102129,-500.0,0.00038356,30]
[391874486,1760942102168,-505.48707284,0.00038356,30]
[391874487,1760942102209,-500.0,0.00038356,30]
[391874488,1760942102252,-500.0,0.00038356,30]
[391874489,1760942102296,-500.0,0.00038356,30]
[391874490,1760942102338,-507.58543988,0.00038356,30]
[391874491,1760942102379,-500.0,0.00038356,30]
[391874492,1760942102417,-500.0,0.00038356,30]
[391874493,1760942102455,-200.0,0.00038356,30]
[391874494,1760942102493,-500.0,0.00038356,30]
[391874495,1760942102532,-500.0,0.00038356,30]
[391874496,1760942102572,-500.51,0.00038356,30]
[391874497,1760942102612,-500.0,0.00038356,30]
[391874498,1760942102654,-500.0,0.00038356,30]
[391874499,1760942102706,-500.0,0.00038356,30]
[391874500,1760942102746,-500.0,0.00038356,30]
[391874501,1760942102785,-420.71792972,0.00038356,30]
[391874502,1760942102822,-500.0,0.00038356,30]
[391874503,1760942102858,-201.83363774,0.00038356,30]
[391874504,1760942102892,-500.0,0.00038356,30]
[391874505,1760942102932,-372.7806002,0.00038356,30]
[391874506,1760942102971,-226.58767364,0.00038356,30]
[391874507,1760942103165,-500.0,0.00038356,30]
[391874508,1760942103216,-510.2,0.00038356,30]
[391874509,1760942103262,-502.4393364,0.00038356,30]
[391874510,1760942103307,-500.0,0.00038356,30]
[391874511,1760942103348,-500.0,0.00038356,30]
[391874512,1760942103387,-501.26358322,0.00038356,30]
[391874513,1760942103431,-500.0,0.00038356,30]
[391874514,1760942103470,-500.0,0.00038356,30]
[391874515,1760942103511,-500.0,0.00038356,30]
[391874516,1760942103550,-351.31855238,0.00038356,30]